[Event "2nd Namma Bengaluru Open-A 2025"]
[Site "Bengaluru"]
[Date "2025.04.15"]
[Round "7.27"]
[White "Venkatesh, M.R."]
[Black "Daksh Goyal"]
[Result "1-0"]
[Annotator "RC"]
[ECO "A08"]
[WhiteElo "2355"]
[BlackElo "2051"]
[PlyCount "107"]
[EventDate "2025.04.10"]
[EventType "swiss"]
[EventCountry "IND"]
[SourceTitle "playchess.com"]
[Source "ChessBase"]
[SourceQuality "1"]
[TimeControl "5400+30"]

1. e4 {[%emt 0:00:24]} e6 {[%emt 0:00:54]} 2. d3 {[%emt 0:01:23]} d5 {[%emt 0:02:25]} 3. Nd2 {[%emt 0:00:06]} c5 {[%emt 0:06:58]} 4. Ngf3 {[%emt 0:01:16]} g6 {[%emt 0:04:02]} 5. g3 {[%emt 0:00:11]} Bg7 {[%emt 0:00:51]} 6. Bg2 {[%emt 0:00:09]} Nc6 {[%emt 0:00:28]} 7. O-O {[%emt 0:00:08]} Nge7 {[%emt 0:00:46]} 8. Re1 {[%emt 0:01:12]} O-O {[%emt 0:01:09]} 9. e5 {[%emt 0:00:52]} Qc7 {[%emt 0:10:51]} 10. Qe2 {[%emt 0:02:18]} Bd7 {[%emt 0:02:59]} 11. Nf1 {[%emt 0:12:02]} Nd4 {[%emt 0:10:15]} 12. Nxd4 {[%emt 0:00:23]} cxd4 {[%emt 0:00:02]} 13. Bf4 {[%emt 0:01:11]} Rfc8 {[%emt 0:06:58]} 14. Rac1 {[%emt 0:01:39]} Qb6 {[%emt 0:04:49]} 15. c4 {[%emt 0:01:49]} dxc4 {[%emt 0:08:31]} 16. dxc4 {[%emt 0:01:14]} Bc6 {[%emt 0:02:19]} 17. h4 {[%emt 0:03:07]} h6 {[%emt 0:04:07]} 18. Nh2 {[%emt 0:01:26]} Bxg2 {[%emt 0:01:55]} 19. Kxg2 {[%emt 0:02:24]} Nf5 {[%emt 0:01:55]} 20. Nf3 {[%emt 0:15:42]} d3 {[%emt 0:10:56]} 21. Qxd3 {[%emt 0:04:26]} Qxb2 {[%emt 0:00:32]} 22. g4 {[%emt 0:07:55]} Ne7 {[%emt 0:10:21]} 23. Qe4 {[%emt 0:08:39]} Rab8 {[%emt 0:04:17]} 24. Red1 {[%emt 0:01:22]} Rc7 {[%emt 0:02:27]} 25. Rc2 {[%emt 0:01:36]} Qb6 {[%emt 0:00:45]} 26. Rd6 {[%emt 0:00:22]} Qb1 {[%emt 0:00:36]} 27. Qe2 {[%emt 0:02:42]} Qb4 {[%emt 0:01:20]} 28. Qd3 {[%emt 0:05:22]} Rbc8 {[%emt 0:00:30]} 29. Rd8+ {[%emt 0:00:41]} Kh7 {[%emt 0:00:05]} 30. Rxc8 {[%emt 0:00:11]} Rxc8 {[%emt 0:00:19]} 31. Kg3 {[%emt 0:06:37]} Qa4 {[%emt 0:01:01]} 32. h5 {[%emt 0:01:20]} b5 {[%emt 0:00:28]} 33. c5 {[%emt 0:00:05]} Nd5 {[%emt 0:00:35]} 34. Bd2 {[%emt 0:01:06]} Kh8 {[%emt 0:00:33]} 35. hxg6 {[%emt 0:00:58]} fxg6 {[%emt 0:00:08]} 36. Qxg6 {[%emt 0:00:24]} Ne7 {[%emt 0:00:14]} 37. Qd3 {[%emt 0:00:25]} h5 {[%emt 0:00:27]} 38. gxh5 {[%emt 0:02:33]} Rg8 {[%emt 0:00:27]} 39. Kg2 {[%emt 0:00:42]} Qg4+ {[%emt 0:01:11]} 40. Kf1 {[%emt 0:00:05]} Rf8 {[%emt 0:00:13]} 41. Rc3 {[%emt 0:02:34]} Qh3+ {[%emt 0:00:48]} 42. Ke2 {[%emt 0:00:46]} Nc6 {[%emt 0:00:29]} 43. Qe4 {[%emt 0:01:59]} b4 {[%emt 0:00:32]} 44. Rd3 {[%emt 0:01:03]} Ne7 {[%emt 0:00:29]} 45. Qh7+ {[%emt 0:08:05]} Kxh7 {[%emt 0:00:03]} 46. Ng5+ {[%emt 0:00:04]} Kh8 {[%emt 0:00:20]} 47. Rxh3 {[%emt 0:00:05]} Bxe5 {[%emt 0:00:17]} 48. Nxe6 {[%emt 0:00:28]} Rf6 {[%emt 0:00:04]} 49. Ng5 {[%emt 0:00:08]} Nd5 {[%emt 0:02:19]} 50. Rf3 {[%emt 0:01:50]} Bf4 {[%emt 0:00:00]} 51. Bxf4 {[%emt 0:01:20]} Nxf4+ {[%emt 0:00:00]} 52. Ke3 {[%emt 0:00:49]} Ng2+ {[%emt 0:00:00]} 53. Ke4 {[%emt 0:00:23]} Ra6 {[%emt 0:00:00]} 54. h6 {[%emt 0:00:14]} 1-0

[Event "2nd Namma Bengaluru Open-A 2025"]
[Site "Bengaluru"]
[Date "2025.04.15"]
[Round "7.28"]
[White "Sanket Chakravarty"]
[Black "Siddhanth Poonja"]
[Result "0-1"]
[Annotator "ChessBase"]
[ECO "A48"]
[WhiteElo "2317"]
[BlackElo "2046"]
[PlyCount "76"]
[EventDate "2025.04.10"]
[EventType "swiss"]
[EventCountry "IND"]
[SourceTitle "playchess.com"]
[Source "ChessBase"]
[SourceQuality "1"]
[TimeControl "5400+30"]

1. Nf3 {[%emt 0:00:06]} c5 {[%emt 0:00:48]} 2. e3 {[%emt 0:00:18]} g6 {[%emt 0:01:12]} 3. d4 {[%emt 0:00:25]} Bg7 {[%emt 0:00:09]} 4. dxc5 {[%emt 0:03:01]} Qa5+ {[%emt 0:01:56]} 5. Nbd2 {[%emt 0:00:11]} Qxc5 {[%emt 0:00:22]} 6. a3 {[%emt 0:00:15]} Qc7 {[%emt 0:04:04]} 7. c4 {[%emt 0:12:57]} Nf6 {[%emt 0:03:48]} 8. b4 {[%emt 0:03:30]} O-O {[%emt 0:13:33]} 9. Bb2 {[%emt 0:02:47]} b6 {[%emt 0:00:12]} 10. Rc1 {[%emt 0:02:00]} d6 {[%emt 0:01:22]} 11. Be2 {[%emt 0:00:55]} Bb7 {[%emt 0:00:31]} 12. O-O {[%emt 0:00:55]} Nbd7 {[%emt 0:00:02]} 13. Qb3 {[%emt 0:14:33]} Rac8 {[%emt 0:03:26]} 14. Rc2 {[%emt 0:00:39]} Qb8 {[%emt 0:01:47]} 15. Rfc1 {[%emt 0:02:13]} Qa8 {[%emt 0:01:51]} 16. Bf1 {[%emt 0:09:48]} Rfd8 {[%emt 0:07:19]} 17. h3 {[%emt 0:00:22]} a6 {[%emt 0:02:29]} 18. Bd4 {[%emt 0:01:09]} Rc7 {[%emt 0:02:57]} 19. Ne1 {[%emt 0:06:23]} Rdc8 {[%emt 0:02:41]} 20. Nd3 {[%emt 0:02:19]} Ne8 {[%emt 0:09:56]} 21. Nb2 {[%emt 0:02:55]} e5 {[%emt 0:05:43]} 22. Bc3 {[%emt 0:00:25]} d5 {[%emt 0:00:10]} 23. Nf3 {[%emt 0:15:50]} dxc4 {[%emt 0:06:07]} 24. Bxc4 {[%emt 0:00:43]} Nd6 {[%emt 0:00:18]} 25. Bd2 {[%emt 0:05:50]} Nxc4 {[%emt 0:05:28]} 26. Rxc4 {[%emt 0:00:02]} Rxc4 {[%emt 0:02:37]} 27. Rxc4 {[%emt 0:00:05]} Rxc4 {[%emt 0:00:10]} 28. Qxc4 {[%emt 0:00:45]} Bxf3 {[%emt 0:00:24]} 29. gxf3 {[%emt 0:00:04]} Qxf3 {[%emt 0:00:13]} 30. Qc8+ {[%emt 0:01:32]} Nf8 {[%emt 0:00:14]} 31. Bc3 {[%emt 0:00:06]} e4 {[%emt 0:02:22]} 32. Bxg7 {[%emt 0:07:10]} Kxg7 {[%emt 0:00:02]} 33. Qxa6 {[%emt 0:00:46]} Ne6 {[%emt 0:01:02]} 34. Qf1 {[%emt 0:00:13]} Ng5 {[%emt 0:00:38]} 35. Nd1 {[%emt 0:04:49]} Nxh3+ {[%emt 0:00:30]} 36. Kh2 {[%emt 0:00:02]} Ng5 {[%emt 0:00:08]} 37. Nc3 {[%emt 0:00:27]} Qg4 {[%emt 0:01:01]} 38. Kh1 {[%emt 0:01:02]} Nf3 {[%emt 0:00:16]} 0-1

[Event "2nd Namma Bengaluru Open-A 2025"]
[Site "Bengaluru"]
[Date "2025.04.15"]
[Round "7.29"]
[White "Singh, S. Vikramjit"]
[Black "Sriram, Jha"]
[Result "1/2-1/2"]
[Annotator "RC"]
[ECO "D13"]
[WhiteElo "2165"]
[BlackElo "2315"]
[PlyCount "90"]
[EventDate "2025.04.10"]
[EventType "swiss"]
[EventCountry "IND"]
[SourceTitle "playchess.com"]
[Source "ChessBase"]
[SourceQuality "1"]
[TimeControl "5400+30"]

1. d4 {[%emt 0:00:15]} d5 {[%emt 0:00:09]} 2. c4 {[%emt 0:00:17]} c6 {[%emt 0:00:08]} 3. cxd5 {[%emt 0:01:14]} cxd5 {[%emt 0:00:04]} 4. Nc3 {[%emt 0:00:14]} Nf6 {[%emt 0:00:08]} 5. Nf3 {[%emt 0:00:17]} Nc6 {[%emt 0:00:31]} 6. Bf4 {[%emt 0:00:29]} a6 {[%emt 0:00:24]} 7. Qb3 {[%emt 0:01:00]} Na5 {[%emt 0:13:48]} 8. Qc2 {[%emt 0:01:19]} g6 {[%emt 0:02:47]} 9. e3 {[%emt 0:04:41]} Bf5 {[%emt 0:02:04]} 10. Bd3 {[%emt 0:01:50]} Bxd3 {[%emt 0:00:17]} 11. Qxd3 {[%emt 0:00:09]} Bg7 {[%emt 0:00:05]} 12. O-O {[%emt 0:00:36]} O-O {[%emt 0:01:46]} 13. h3 {[%emt 0:11:46]} b5 {[%emt 0:10:18]} 14. Rfc1 {[%emt 0:02:58]} Qb6 {[%emt 0:04:36]} 15. Ne5 {[%emt 0:10:09]} Rfc8 {[%emt 0:02:45]} 16. Rc2 {[%emt 0:07:25]} Qb7 {[%emt 0:04:45]} 17. Rac1 {[%emt 0:02:50]} e6 {[%emt 0:04:38]} 18. b3 {[%emt 0:09:12]} Bf8 {[%emt 0:15:56]} 19. Nb1 {[%emt 0:09:24]} Ne4 {[%emt 0:04:45]} 20. f3 {[%emt 0:02:44]} Nd6 {[%emt 0:06:26]} 21. Rxc8 {[%emt 0:12:18]} Rxc8 {[%emt 0:00:12]} 22. Rxc8 {[%emt 0:00:13]} Qxc8 {[%emt 0:09:11]} 23. Qc3 {[%emt 0:01:13]} Qxc3 {[%emt 0:01:17]} 24. Nxc3 {[%emt 0:00:09]} Ndb7 {[%emt 0:01:20]} 25. Nd3 {[%emt 0:05:04]} Nc6 {[%emt 0:01:21]} 26. Kf2 {[%emt 0:01:03]} f6 {[%emt 0:00:40]} 27. g4 {[%emt 0:06:15]} g5 {[%emt 0:00:52]} 28. Bg3 {[%emt 0:00:58]} Kf7 {[%emt 0:00:01]} 29. h4 {[%emt 0:00:27]} h6 {[%emt 0:00:42]} 30. hxg5 {[%emt 0:00:09]} hxg5 {[%emt 0:00:03]} 31. Ke2 {[%emt 0:02:09]} Ke8 {[%emt 0:00:43]} 32. Kd2 {[%emt 0:01:35]} Kd7 {[%emt 0:00:04]} 33. Ne2 {[%emt 0:00:49]} b4 {[%emt 0:01:53]} 34. Bh2 {[%emt 0:01:20]} Bd6 {[%emt 0:00:13]} 35. Bxd6 {[%emt 0:00:24]} Kxd6 {[%emt 0:00:01]} 36. Ng3 {[%emt 0:00:38]} a5 {[%emt 0:00:02]} 37. Nh5 {[%emt 0:00:37]} Ke7 {[%emt 0:00:46]} 38. Ng3 {[%emt 0:00:17]} Kd6 {[%emt 0:00:58]} 39. Nh5 {[%emt 0:00:45]} Ke7 {[%emt 0:00:01]} 40. Ng3 {[%emt 0:00:28]} Nd6 {[%emt 0:02:27]} 41. Ne2 {[%emt 0:01:13]} Nb5 {[%emt 0:00:28]} 42. Ne1 {[%emt 0:01:22]} e5 {[%emt 0:04:12]} 43. Kd3 {[%emt 0:00:18]} Ke6 {[%emt 0:00:30]} 44. Nc2 {[%emt 0:00:28]} Nd6 {[%emt 0:02:21]} 45. Ng3 {[%emt 0:00:21]} Ne7 {[%emt 0:01:10]} 1/2-1/2

[Event "2nd Namma Bengaluru Open-A 2025"]
[Site "Bengaluru"]
[Date "2025.04.15"]
[Round "7.30"]
[White "Bhoir Paras Dilip"]
[Black "Jinan Jomon"]
[Result "1-0"]
[Annotator "RC"]
[ECO "B99"]
[WhiteElo "2085"]
[BlackElo "2311"]
[PlyCount "99"]
[EventDate "2025.04.10"]
[EventType "swiss"]
[EventCountry "IND"]
[SourceTitle "playchess.com"]
[Source "ChessBase"]
[SourceQuality "1"]
[TimeControl "5400+30"]

1. e4 {[%emt 0:06:16]} c5 {[%emt 0:00:08]} 2. Nf3 {[%emt 0:00:13]} d6 {[%emt 0:00:03]} 3. d4 {[%emt 0:00:04]} cxd4 {[%emt 0:00:08]} 4. Nxd4 {[%emt 0:00:03]} Nf6 {[%emt 0:00:08]} 5. Nc3 {[%emt 0:00:08]} a6 {[%emt 0:00:06]} 6. Bg5 {[%emt 0:00:06]} e6 {[%emt 0:00:32]} 7. f4 {[%emt 0:00:11]} Be7 {[%emt 0:02:12]} 8. Qf3 {[%emt 0:00:13]} Qc7 {[%emt 0:02:15]} 9. O-O-O {[%emt 0:00:30]} Nbd7 {[%emt 0:00:57]} 10. g4 {[%emt 0:00:55]} b5 {[%emt 0:00:22]} 11. Bxf6 {[%emt 0:01:06]} Nxf6 {[%emt 0:00:19]} 12. g5 {[%emt 0:00:29]} Nd7 {[%emt 0:00:06]} 13. f5 {[%emt 0:00:06]} O-O {[%emt 0:01:02]} 14. Qh5 {[%emt 0:10:16]} b4 {[%emt 0:10:47]} 15. Rd3 {[%emt 0:00:55]} bxc3 {[%emt 0:05:25]} 16. Rxc3 {[%emt 0:00:13]} Qb6 {[%emt 0:00:46]} 17. Nc6 {[%emt 0:01:43]} Bf6 {[%emt 0:03:01]} 18. e5 {[%emt 0:01:23]} g6 {[%emt 0:16:46]} 19. Qh6 {[%emt 0:09:01]} Qf2 {[%emt 0:02:02]} 20. Kd1 {[%emt 0:08:00]} Bg7 {[%emt 0:06:36]} 21. Ne7+ {[%emt 0:09:50]} Kh8 {[%emt 0:00:02]} 22. Qxh7+ {[%emt 0:00:42]} Kxh7 {[%emt 0:00:02]} 23. Rh3+ {[%emt 0:00:06]} Bh6 {[%emt 0:00:04]} 24. Rxh6+ {[%emt 0:01:07]} Kg7 {[%emt 0:00:02]} 25. f6+ {[%emt 0:00:10]} Nxf6 {[%emt 0:00:05]} 26. exf6+ {[%emt 0:00:08]} Qxf6 {[%emt 0:00:04]} 27. gxf6+ {[%emt 0:00:14]} Kxh6 {[%emt 0:00:03]} 28. Rg1 {[%emt 0:00:34]} Rb8 {[%emt 0:05:28]} 29. b3 {[%emt 0:00:04]} Bb7 {[%emt 0:11:56]} 30. Kd2 {[%emt 0:01:53]} Be4 {[%emt 0:04:35]} 31. a4 {[%emt 0:02:43]} a5 {[%emt 0:03:43]} 32. Bb5 {[%emt 0:00:28]} Rb6 {[%emt 0:00:40]} 33. c4 {[%emt 0:02:22]} Kh5 {[%emt 0:04:40]} 34. Ke3 {[%emt 0:05:38]} Bf5 {[%emt 0:03:54]} 35. Nc6 {[%emt 0:01:26]} Ra8 {[%emt 0:02:57]} 36. Ne7 {[%emt 0:02:01]} g5 {[%emt 0:00:43]} 37. Rf1 {[%emt 0:05:16]} Rh8 {[%emt 0:00:38]} 38. Rf2 {[%emt 0:03:38]} Rbb8 {[%emt 0:02:09]} 39. Rd2 {[%emt 0:00:43]} Kg4 {[%emt 0:02:57]} 40. Rd4+ {[%emt 0:07:29]} Kh3 {[%emt 0:00:27]} 41. Rxd6 {[%emt 0:00:05]} Kxh2 {[%emt 0:00:22]} 42. Rd2+ {[%emt 0:00:05]} Kg3 {[%emt 0:03:53]} 43. c5 {[%emt 0:04:14]} Rh4 {[%emt 0:00:05]} 44. Rd7 {[%emt 0:04:01]} Re4+ {[%emt 0:01:22]} 45. Kd2 {[%emt 0:00:12]} Rh8 {[%emt 0:03:05]} 46. c6 {[%emt 0:11:34]} Rh2+ {[%emt 0:00:22]} 47. Kc3 {[%emt 0:00:20]} Re3+ 48. Kd4 {[%emt 0:00:30]} Kf4 49. Nxf5 {[%emt 0:00:30]} exf5 50. c7 {[%emt 0:00:30]} 1-0